bitfinex/quotes_SOLUSD_20240814
["timestamp","ask_amount","ask_price","bid_price","bid_amount"]
[1723602698542,20.0,144.47,144.43,6.9236]
[1723602699362,6.922,144.47,144.43,6.9236]
[1723602699549,1.73091306,144.46,144.42,6.9241]
[1723602699751,1.73095596,144.45,144.42,6.9241]
[1723602700451,6.922,144.47,144.42,6.9241]
[1723602701562,0.12549,144.46,144.41,18.1382891]
[1723602701772,0.12549,144.46,144.41,0.8271891]
[1723602701773,6.9233,144.44,144.41,0.8271891]
[1723602701953,1.73120362,144.43,144.41,0.8271891]
[1723602703667,8.78088941,144.42,144.41,0.8271891]
[1723602705172,1.73119941,144.42,144.41,0.8271891]
[1723602705358,19.90909,144.44,144.41,0.8271891]
[1723602705668,21.73129171,144.43,144.41,0.8271891]
[1723602705872,20.0,144.43,144.41,0.8271891]
[1723602706045,22.73656267,144.46,144.41,7.7516891]
[1723602706253,12.86,144.5,144.41,0.8271891]
[1723602706466,19.7808,144.5,144.45,6.9224]
[1723602706666,12.86,144.5,144.46,6.9219]
[1723602706846,34.27194068,144.55,144.47,6.9218]
[1723602707161,6.9195,144.52,144.48,6.9213]
[1723602707376,6.9195,144.52,144.47,6.9218]
[1723602708754,9.23123216,144.55,144.47,6.0616]
[1723602708961,12.86,144.55,144.47,6.0616]
[1723602709154,6.9188,144.54,144.49,6.9207]
[1723602709374,6.9188,144.54,144.47,12.983]
[1723602709375,1.73013798,144.54,144.47,12.983]
[1723602709679,12.86,144.55,144.47,12.983]
[1723602710080,6.9194,144.52,144.47,12.983]
[1723602710466,6.919,144.53,144.48,6.9212]
[1723602710971,6.919,144.53,144.47,6.0616]
[1723602711211,0.25098,144.54,144.48,6.9213]
[1723602711212,8.64966321,144.52,144.48,6.9213]
[1723602711499,6.9194,144.52,144.47,6.0616]
[1723602712195,1.73035713,144.51,144.47,6.0616]
[1723602712689,0.12549,144.5,144.43,6.6206]
[1723602712892,6.9214,144.48,144.43,13.5442]
[1723602713083,1.73085743,144.47,144.41,15.8799891]
[1723602713379,6.9229,144.45,144.41,15.8799891]
[1723602713679,1.73106966,144.44,144.41,0.8271891]
[1723602714581,1.73106966,144.44,144.41,7.7517891]
[1723602716461,8.65436966,144.44,144.41,0.8271891]
[1723602717396,6.9233,144.44,144.41,0.8271891]
[1723602719467,1.73126264,144.43,144.41,0.8271891]
[1723602719778,1.73126326,144.42,144.41,0.8271891]
[1723602720182,6.9233,144.44,144.41,0.8271891]
[1723602720696,1.73126149,144.43,144.41,0.8271891]
[1723602721051,6.9233,144.44,144.41,0.8271891]
[1723602721491,1.73125977,144.43,144.41,0.8271891]
[1723602721701,1.73127338,144.42,144.41,0.8271891]
[1723602722596,6.9234,144.44,144.41,0.8271891]
[1723602724326,1.7312812,144.43,144.41,0.8271891]
[1723602724795,6.9234,144.44,144.41,0.8271891]
[1723602724997,1.73127855,144.47,144.41,7.7517891]
[1723602725171,6.9228,144.45,144.41,7.7517891]
[1723602725498,1.73110536,144.44,144.41,7.7517891]
[1723602725794,1.73110536,144.44,144.41,0.8271891]
[1723602726022,1.73110536,144.44,144.41,7.7517891]
[1723602726304,19.7828,144.45,144.41,7.7517891]
[1723602727387,12.86,144.45,144.41,7.7517891]
[1723602727591,7.04789,144.46,144.41,7.7517891]
[1723602727796,20.0,144.45,144.41,7.7517891]
[1723602728472,14.40600189,144.53,144.41,0.8271891]
[1723602728674,6.9209,144.49,144.44,6.9231]
[1723602728880,12.86,144.52,144.43,12.86]
[1723602729194,6.9195,144.52,144.47,6.9216]
[1723602730178,7.04549,144.51,144.47,6.9216]
[1723602730390,20.0,144.5,144.47,6.9216]
[1723602730593,7.22547386,144.55,144.45,12.86]
[1723602730795,6.919,144.53,144.45,12.86]
[1723602730972,12.86,144.55,144.47,6.9214]
[1723602730973,6.9196,144.52,144.47,6.9214]
[1723602731173,12.86,144.55,144.47,6.9214]
[1723602731174,1.73034114,144.51,144.47,6.9214]
[1723602731401,12.86,144.55,144.47,6.9214]
[1723602731605,6.9194,144.52,144.47,6.9214]
[1723602731983,1.73026858,144.51,144.47,6.9214]
[1723602732293,12.86,144.53,144.47,6.9218]
[1723602732597,6.92,144.51,144.46,6.9223]
[1723602732807,6.9204,144.5,144.46,6.9223]
[1723602733021,6.9204,144.5,144.45,6.9227]
[1723602733314,8.65150816,144.49,144.44,6.9232]
[1723602733676,6.921,144.49,144.44,6.9232]
[1723602734286,6.921,144.49,144.45,6.9228]
[1723602734697,7.29697,144.5,144.45,6.9228]
[1723602734912,65.0,144.52,144.45,12.86]
[1723602734913,20.0,144.52,144.45,12.86]
[1723602735127,6.919,144.53,144.45,12.86]
[1723602735288,6.9195,144.52,144.45,12.86]
[1723602736017,6.9191,144.53,144.45,12.86]
[1723602737912,6.9191,144.53,144.49,6.9208]
[1723602739209,6.9191,144.53,144.48,6.9212]
[1723602739578,6.9195,144.52,144.48,6.9212]
[1723602742788,6.919,144.53,144.48,6.9212]
[1723602743188,6.919,144.53,144.49,6.9207]
[1723602743610,20.08606826,144.56,144.5,6.9203]
[1723602743910,20.0,144.55,144.49,22.0509]
[1723602744087,6.919,144.53,144.49,22.0509]
[1723602744682,6.9186,144.54,144.49,22.0509]
[1723602750904,6.9191,144.53,144.49,15.1302]
[1723602752893,6.9191,144.53,144.41,52.2671891]
[1723602752894,14.5900523,144.52,144.45,15.6051]
[1723602753153,1.98136858,144.51,144.45,15.6051]
[1723602753331,12.98549,144.5,144.45,15.6051]
[1723602753627,6.9218,144.47,144.44,6.0429]
[1723602753928,6.9214,144.48,144.44,6.0429]
[1723602754424,7.04639,144.49,144.44,6.0429]
[1723602756599,0.12549,144.5,144.44,6.0429]
[1723602756794,20.12549,144.5,144.45,6.9227]
[1723602757495,6.9209,144.49,144.45,6.9227]
[1723602758222,6.9209,144.49,144.44,12.966]
[1723602759930,20.0,144.5,144.44,6.0429]
[1723602760828,26.9199,144.51,144.47,6.9213]
[1723602761733,32.86,144.51,144.44,6.0429]
[1723602761913,46.98124769,144.5,144.44,6.0429]
[1723602762113,6.9223,144.46,144.44,6.0429]
[1723602762327,12.98549,144.49,144.41,23.3567891]
[1723602762328,6.9228,144.45,144.41,23.3567891]
[1723602762634,6.9228,144.45,144.41,16.4322891]
[1723602762831,6.9233,144.44,144.41,16.4322891]
[1723602763036,6.9233,144.44,144.41,0.8271891]
[1723602765736,19.7829,144.45,144.41,0.8271891]
[1723602768332,19.7838,144.43,144.41,0.8271891]
[1723602768540,6.9233,144.44,144.41,0.8271891]
[1723602768833,12.86,144.45,144.41,0.8271891]
[1723602769041,20.0,144.44,144.41,0.8271891]
[1723602769817,1.73114711,144.43,144.41,0.8271891]
[1723602770242,26.9235,144.44,144.41,0.8271891]
[1723602770558,20.0,144.44,144.41,0.8271891]
[1723602775039,20.0,144.44,144.41,7.7517891]
[1723602775226,6.9229,144.45,144.41,0.8271891]
[1723602775428,12.86,144.47,144.41,0.8271891]
[1723602775429,6.9221,144.47,144.41,18.1379891]
[1723602775629,6.9221,144.47,144.42,6.9241]
[1723602776315,15.0461,144.51,144.44,28.1438]
[1723602776316,7.22783567,144.51,144.44,28.1438]
[1723602776538,6.9199,144.51,144.47,6.9218]
[1723602776847,6.9204,144.5,144.46,13.096]
[1723602777642,6.92,144.51,144.46,13.096]
[1723602778320,6.92,144.51,144.47,6.9217]
[1723602778527,20.08867762,144.55,144.46,19.0338]
[1723602779035,12.86,144.55,144.46,19.0338]
[1723602779229,6.919,144.53,144.48,6.9209]
[1723602779447,6.919,144.53,144.46,19.0338]
[1723602779821,6.919,144.53,144.48,6.9212]
[1723602780639,6.9203,144.51,144.46,13.0959]
[1723602780847,12.86,144.53,144.47,6.9218]
[1723602780848,6.9195,144.52,144.47,6.9218]
[1723602781343,6.919,144.53,144.48,6.9211]
[1723602782139,6.9182,144.55,144.5,6.9203]
[1723602782444,26.9186,144.54,144.49,6.9207]
[1723602784528,26.9186,144.54,144.5,6.9203]
[1723602785227,6.9176,144.56,144.52,6.9194]
[1723602785430,6.9166,144.58,144.53,6.9189]
[1723602786146,6.9171,144.57,144.53,6.9189]
[1723602786440,6.9166,144.58,144.53,6.9189]
[1723602786953,20.0,144.57,144.53,8.19783012]
[1723602787439,20.0,144.57,144.54,6.9184]
[1723602787743,20.0,144.58,144.54,6.9184]
[1723602788449,20.0,144.58,144.55,8.19665315]
[1723602788631,20.0,144.59,144.55,6.9179]
[1723602788819,19.7752,144.61,144.56,8.19588778]
[1723602789018,6.9152,144.61,144.56,23.4635]
[1723602789524,6.9158,144.6,144.56,16.5461]
[1723602789850,1.72919155,144.59,144.56,16.5461]
[1723602790049,6.917,144.58,144.56,16.5461]
[1723602790235,8.64634329,144.58,144.56,16.5461]
[1723602791034,8.64634329,144.58,144.53,22.7643]
[1723602791246,6.917,144.58,144.54,6.9183]
[1723602791428,6.9162,144.59,144.54,6.9183]
[1723602791629,6.9157,144.6,144.55,6.9179]
[1723602793529,7.22518478,144.65,144.56,12.86]
[1723602793727,14.13838478,144.65,144.58,12.86]
[1723602793952,19.58288916,144.67,144.58,12.86]
[1723602793953,6.9131,144.66,144.61,6.915]
[1723602794755,12.86,144.65,144.59,15.6969]
[1723602794926,6.9142,144.63,144.59,15.6969]
[1723602795128,12.86,144.65,144.59,15.6969]
[1723602795329,12.86,144.67,144.59,15.6969]
[1723602795539,6.9128,144.66,144.59,15.6969]
[1723602795749,6.9133,144.65,144.61,6.915]
[1723602795951,6.9133,144.65,144.59,15.6969]
[1723602795952,6.9133,144.65,144.6,6.9155]
[1723602796255,8.64237169,144.64,144.59,22.6129]
[1723602796654,6.9137,144.64,144.6,6.9155]
[1723602797037,6.9137,144.64,144.59,22.6128]
[1723602799432,6.9137,144.64,144.6,6.9155]
[1723602799747,6.9133,144.65,144.6,6.9155]
[1723602799937,7.03789,144.67,144.62,6.9146]
[1723602800137,20.0,144.66,144.62,6.9146]
[1723602800554,20.0,144.66,144.63,6.9141]
[1723602800856,20.0,144.66,144.61,6.9146]
[1723602801080,20.0,144.66,144.62,6.9145]
[1723602801259,7.03769,144.68,144.63,6.9141]
[1723602801567,26.9123,144.67,144.62,6.9145]
[1723602801761,20.0,144.67,144.61,6.915]
[1723602801962,20.0,144.67,144.59,15.6969]
[1723602802146,45.12549,144.66,144.59,15.6969]
[1723602802349,20.0,144.65,144.59,15.6969]
[1723602803040,6.9139,144.64,144.59,22.6129]
[1723602804135,20.0,144.65,144.62,6.9145]
[1723602804338,26.9123,144.67,144.62,6.9145]
[1723602805747,6.9128,144.66,144.6,6.9152]
[1723602806070,32.29549,144.64,144.57,6.2973]
[1723602806268,0.12549,144.62,144.57,6.2973]
[1723602806442,6.9162,144.59,144.55,15.8858]
[1723602807055,6.9162,144.59,144.55,22.8037]
[1723602807858,6.9156,144.6,144.55,22.8037]
[1723602808450,6.9152,144.61,144.56,6.9173]
[1723602808641,20.0,144.6,144.56,6.9173]
[1723602808845,26.9156,144.6,144.56,6.9173]
[1723602809246,26.9156,144.6,144.55,15.8858]
[1723602809443,1.72928489,144.59,144.54,6.0552]
[1723602809743,6.9166,144.58,144.54,6.0552]
[1723602810857,1.7295401,144.57,144.53,6.9189]
[1723602811055,6.9166,144.58,144.53,6.9189]
[1723602811662,6.917,144.57,144.53,6.9189]
[1723602812859,6.9166,144.58,144.53,6.9189]
[1723602813765,1.729431,144.57,144.51,15.3075]
[1723602813951,32.17,144.58,144.51,15.3075]
[1723602814151,6.9176,144.56,144.51,22.2273]
[1723602814361,6.9176,144.56,144.52,6.9193]
[1723602814545,26.9171,144.57,144.52,6.9193]
[1723602815342,28.6466887,144.57,144.52,6.9193]
[1723602815666,6.9176,144.56,144.52,6.9193]
[1723602816267,26.9171,144.57,144.52,6.9193]
[1723602817145,6.9176,144.56,144.52,6.9193]
[1723602817345,6.9176,144.56,144.51,22.2273]
[1723602819261,20.0,144.57,144.51,15.3075]
[1723602820446,20.0,144.57,144.53,6.9189]
[1723602821166,26.9172,144.57,144.53,6.9189]
[1723602821366,1.72945414,144.56,144.51,15.3075]
[1723602822261,6.918,144.55,144.51,15.3075]
[1723602822479,6.919,144.53,144.51,15.3075]
[1723602822652,6.9211,144.49,144.47,15.86874307]
[1723602822966,6.92,144.51,144.47,22.79034307]
[1723602823171,0.12549,144.54,144.48,6.9213]
[1723602823343,20.25098,144.54,144.48,6.9213]
[1723602823975,6.9195,144.52,144.47,22.79044307]
[1723602825070,6.9195,144.52,144.48,6.9212]
[1723602825270,6.9189,144.53,144.48,6.9212]
[1723602825454,20.0,144.52,144.48,6.9212]
[1723602825656,2.75289952,144.57,144.51,6.9195]
[1723602825657,32.17,144.57,144.51,6.9195]
[1723602825875,6.9176,144.56,144.51,6.9198]
[1723602826373,6.9181,144.55,144.51,6.9198]
[1723602826554,6.9176,144.56,144.51,6.9198]
[1723602826753,6.9171,144.57,144.52,6.9192]
[1723602826948,6.9176,144.56,144.52,6.9192]
[1723602827580,6.9176,144.56,144.51,6.9198]
[1723602828161,6.9171,144.57,144.48,0.12549]
[1723602828357,20.0,144.56,144.52,6.9193]
[1723602828573,26.9176,144.56,144.52,6.9193]
[1723602828774,6.918,144.55,144.48,0.50196]
[1723602828962,6.918,144.55,144.53,0.08904307]
[1723602830674,20.0,144.56,144.53,0.08904307]
[1723602830675,26.9176,144.56,144.53,0.08904307]
[1723602831783,20.0,144.56,144.53,7.00794307]
[1723602831965,78.55419075,144.61,144.53,7.00794307]
[1723602831966,0.12549,144.59,144.53,7.00794307]
[1723602832165,0.37647,144.59,144.53,7.00794307]
[1723602832787,6.9181,144.55,144.53,0.08904307]
[1723602833778,6.9176,144.56,144.53,0.08904307]
[1723602834173,6.9171,144.57,144.53,0.08904307]
[1723602834377,20.0,144.56,144.53,0.08904307]
[1723602837477,26.9176,144.56,144.53,0.08904307]
[1723602838088,6.9185,144.54,144.53,0.08904307]
[1723602838270,8.64840565,144.54,144.53,0.08904307]
[1723602838688,28.64840565,144.54,144.53,0.08904307]
[1723602840361,27.16948,144.54,144.53,0.08904307]
[1723602840568,6.9216,144.48,144.44,6.0577]
[1723602840788,32.17,144.51,144.44,6.0577]
[1723602840992,20.0,144.5,144.46,6.9221]
[1723602841695,26.9204,144.5,144.46,6.9221]
[1723602841866,8.65120177,144.49,144.44,12.9809]
[1723602842065,6.9214,144.48,144.44,12.9809]
[1723602842292,20.0,144.5,144.44,6.0577]
[1723602842479,6.9218,144.47,144.43,16.0054]
[1723602842682,77.42098,144.49,144.43,16.0054]
[1723602842683,6.9213,144.48,144.43,22.9291]
[1723602842879,20.0,144.5,144.43,33.3138]
[1723602843265,1.73055468,144.49,144.43,33.3138]
[1723602843472,1.73066475,144.48,144.43,33.3138]
[1723602843799,20.0,144.5,144.43,33.3138]
[1723602844103,0.12549,144.49,144.43,33.3138]
[1723602844281,1.85617083,144.49,144.43,33.3138]
[1723602844477,6.9213,144.48,144.43,40.2371]
[1723602844995,0.12549,144.49,144.43,40.2371]
[1723602844996,8.65262194,144.47,144.43,33.3138]
[1723602845368,6.9219,144.47,144.43,33.3138]
[1723602845567,6.9219,144.47,144.41,0.8271891]
[1723602845568,8.65319318,144.46,144.41,7.7518891]
[1723602845797,8.65378537,144.45,144.41,0.8271891]
[1723602846303,6.9234,144.44,144.41,0.8271891]
[1723602846474,6.9228,144.46,144.41,0.8271891]
[1723602846802,20.0,144.45,144.41,0.8271891]
[1723602847170,26.9223,144.46,144.41,0.8271891]
[1723602847902,20.0,144.46,144.41,7.7513891]
[1723602849178,20.0,144.46,144.41,0.8271891]
[1723602849494,6.923,144.45,144.41,0.8271891]
[1723602849798,26.9223,144.46,144.41,7.7518891]
[1723602850593,6.9228,144.45,144.41,0.8271891]
[1723602851197,20.0,144.46,144.41,0.8271891]
[1723602851495,20.12549,144.48,144.41,0.8271891]
[1723602851697,6.9219,144.47,144.42,6.9238]
[1723602852009,20.0,144.46,144.42,6.9238]
[1723602853700,20.0,144.46,144.41,0.8271891]
[1723602853701,6.9214,144.48,144.43,6.9237]
[1723602853883,20.0,144.47,144.43,6.9237]
[1723602854192,7.17188,144.49,144.44,6.9232]
[1723602854372,20.0,144.48,144.44,6.9232]
[1723602857472,6.9203,144.51,144.46,6.9219]
[1723602857897,6.9204,144.5,144.46,6.9219]
[1723602858106,32.17,144.53,144.45,16.5666]
[1723602858304,6.9213,144.48,144.45,16.5666]
[1723602859487,6.9209,144.49,144.45,16.5666]
[1723602862107,6.9209,144.49,144.45,23.4893]
[1723602862405,0.12549,144.52,144.45,16.5666]
[1723602862608,6.92,144.51,144.46,6.9222]
[1723602862908,20.0,144.5,144.46,6.9222]
[1723602864329,20.0,144.5,144.47,1.28643498]
[1723602864610,6.9195,144.52,144.46,6.4788]
[1723602864779,20.0,144.51,144.46,6.4788]
[1723602865595,20.0,144.51,144.47,6.9218]
[1723602867230,1.73039199,144.5,144.46,6.4788]
[1723602867525,6.9217,144.48,144.46,6.4788]
[1723602868114,6.9209,144.49,144.46,6.4788]
[1723602868901,6.9204,144.5,144.46,6.4788]
[1723602869931,32.17,144.49,144.42,22.0279]
[1723602870101,32.17,144.49,144.42,28.9517]
[1723602870102,6.9219,144.47,144.42,28.9517]
[1723602870424,0.25098,144.5,144.44,6.923]
[1723602870425,0.12549,144.5,144.44,6.923]
[1723602870729,6.9212,144.49,144.44,6.923]
[1723602870928,26.9213,144.48,144.44,6.923]
[1723602871110,6.9213,144.48,144.44,6.923]
[1723602871303,20.0,144.47,144.44,6.923]
[1723602874034,20.0,144.47,144.43,6.9236]
[1723602880138,26.9218,144.47,144.43,6.9236]
[1723602887426,6.9224,144.46,144.42,46.2619]
[1723602891180,20.0,144.47,144.43,6.9237]
[1723602901446,20.0,144.47,144.42,52.2378]
[1723602901658,20.0,144.48,144.42,52.2378]
[1723602902866,20.0,144.48,144.45,6.9227]
[1723602903268,20.0,144.48,144.44,6.9232]
[1723602907274,6.9209,144.49,144.45,6.9227]
[1723602908774,6.9207,144.5,144.45,6.9227]
[1723602908971,20.0,144.49,144.45,6.9227]
[1723602909673,26.9209,144.49,144.45,6.9227]
[1723602913480,26.9209,144.49,144.44,24.2307]
[1723602913656,6.9215,144.48,144.44,24.2307]
[1723602914581,32.9,144.49,144.42,28.9519]
[1723602915352,6.9219,144.47,144.42,28.9519]
[1723602916208,26.9224,144.46,144.42,22.0279]
[1723602916352,6.9233,144.44,144.41,0.8271891]
[1723602917478,6.9242,144.42,144.41,0.8271891]
[1723602917685,20.12549,144.46,144.41,0.8271891]
[1723602917686,12.9,144.43,144.41,0.8271891]
[1723602918078,1.73138304,144.42,144.41,0.8271891]
[1723602918400,1.73138116,144.42,144.41,0.8271891]
[1723602918970,19.8238,144.43,144.41,0.8271891]
[1723602919296,1.73136241,144.42,144.41,0.8271891]
[1723602923176,8.78105241,144.42,144.41,0.8271891]
[1723602923506,19.8238,144.43,144.41,0.8271891]
[1723602923997,0.37647,144.44,144.41,0.8271891]
[1723602924215,20.0,144.46,144.41,0.8271891]
[1723602924379,6.72288916,144.48,144.43,6.9236]
[1723602924380,12.9,144.47,144.43,6.9236]
[1723602925486,24.48083216,144.5,144.44,6.9231]
[1723602925487,12.9,144.49,144.44,6.9231]
[1723602926406,6.9214,144.48,144.43,24.2327]
[1723602926614,12.9,144.47,144.43,24.2327]
[1723602927313,12.9,144.49,144.43,17.3092]
[1723602927489,20.0,144.48,144.43,17.3092]
[1723602928219,20.0,144.48,144.44,6.9231]
[1723602932196,6.9238,144.43,144.41,0.8271891]
[1723602932408,12.9,144.45,144.41,0.8271891]
[1723602932409,19.8228,144.45,144.41,0.8271891]
[1723602932609,19.8228,144.45,144.41,7.7517891]
[1723602932610,12.9,144.45,144.41,7.7517891]
[1723602933195,58.02549,144.47,144.42,6.924]
[1723602933406,20.0,144.46,144.43,6.9234]
[1723602933635,20.0,144.46,144.42,6.9242]
[1723602933806,20.0,144.46,144.41,0.8271891]
[1723602934009,20.0,144.48,144.44,6.9232]
[1723602934328,20.0,144.48,144.43,6.9236]
[1723602934720,20.11544385,144.51,144.46,6.9219]
[1723602936326,20.0,144.5,144.46,6.9219]
[1723602936695,7.21544385,144.51,144.46,6.9219]
[1723602937102,19.8195,144.52,144.46,6.9219]
[1723602937925,6.9199,144.51,144.46,6.9219]
[1723602938429,12.9,144.5,144.44,15.1678]
[1723602938613,6.9211,144.49,144.44,15.1678]
[1723602938809,19.8204,144.5,144.44,15.1678]
[1723602939011,16.58128,144.53,144.44,15.1678]
[1723602939237,78.15098,144.52,144.44,15.1678]
[1723602940612,32.9,144.52,144.45,6.3943]
[1723602941341,12.9,144.58,144.51,15.3935]
[1723602942233,6.917,144.57,144.52,6.919]
[1723602942420,19.8167,144.58,144.53,6.9187]
[1723602942726,20.0,144.57,144.53,6.9187]
[1723602945211,26.9172,144.57,144.52,6.9194]
[1723602945532,6.9175,144.56,144.52,6.9194]
[1723602946326,20.0,144.57,144.55,6.9177]
[1723602946519,14.13971665,144.61,144.56,6.9174]
[1723602946716,6.1372,144.65,144.55,6.4254]
[1723602946717,6.9147,144.62,144.57,6.917]
[1723602946912,6.9151,144.61,144.56,6.9174]
[1723602947210,6.9147,144.62,144.57,6.9169]
[1723602947410,19.8142,144.63,144.58,6.9165]
[1723602947938,19.8142,144.63,144.57,6.9169]
[1723602947939,6.9146,144.62,144.57,6.9169]
[1723602948623,12.9,144.61,144.56,15.1486]
[1723602948833,6.9159,144.6,144.56,15.1486]
[1723602949207,12.9,144.61,144.56,15.1486]
[1723602949208,6.9162,144.59,144.56,15.1486]
[1723602949401,12.9,144.61,144.56,15.1486]
[1723602949601,12.9,144.61,144.56,22.0659]
[1723602950045,17.2852,144.64,144.59,6.9157]
[1723602950046,19.814,144.64,144.59,6.9157]
[1723602950209,20.0,144.63,144.56,28.0486]
[1723602950613,20.0,144.63,144.6,6.9153]
[1723602951015,12.9,144.64,144.6,6.9153]
[1723602951241,19.8137,144.64,144.59,6.916]
[1723602952038,6.9137,144.64,144.59,6.916]
[1723602952213,20.0,144.63,144.59,6.916]
[1723602953032,20.0,144.63,144.56,15.1486]
[1723602953213,26.9142,144.63,144.58,6.9165]
[1723602953544,26.9142,144.63,144.56,15.1486]
[1723602953545,8.64360803,144.62,144.56,15.1486]
[1723602954037,1.72880803,144.62,144.56,15.1486]
[1723602954242,1.72918083,144.61,144.56,15.1486]
[1723602954413,1.72917177,144.6,144.56,15.1486]
[1723602954616,21.72917177,144.6,144.56,15.1486]
[1723602955645,20.0,144.6,144.56,15.1486]
[1723602956016,6.9146,144.63,144.58,6.9165]
[1723602956214,52.17,144.62,144.56,15.1486]
[1723602956411,6.9155,144.61,144.56,22.0661]
[1723602956607,20.0,144.6,144.56,22.0661]
[1723602959533,20.0,144.6,144.57,6.917]
[1723602959734,20.0,144.61,144.57,6.917]
[1723602959935,26.9152,144.61,144.56,22.0661]
[1723602960940,8.64490525,144.6,144.56,15.1486]
[1723602961143,1.72920525,144.6,144.56,15.1486]
[1723602961319,0.12549,144.6,144.55,6.4254]
[1723602961521,6.9161,144.59,144.55,6.4254]
[1723602961714,7.04119,144.6,144.55,13.3434]
[1723602961915,6.9157,144.6,144.55,13.3434]
[1723602962440,20.0,144.61,144.56,6.9173]
[1723602962744,6.9133,144.65,144.6,6.9156]
[1723602962931,6.9137,144.64,144.59,22.1449]
[1723602963434,6.9142,144.63,144.59,15.229]
[1723602963742,32.17,144.65,144.56,6.917]
[1723602963920,32.29549,144.63,144.56,6.917]
[1723602964452,6.9159,144.6,144.55,22.8411]
[1723602964954,6.9159,144.6,144.56,6.9174]
[1723602965252,6.9152,144.61,144.56,6.9174]
[1723602966748,1.72922396,144.6,144.56,6.9174]
[1723602967248,1.72922396,144.6,144.55,22.8411]
[1723602967249,6.9147,144.62,144.57,6.9169]
[1723602967447,20.0,144.61,144.57,6.9169]
[1723602967747,8.64481758,144.6,144.55,29.759]
[1723602967946,1.72921758,144.6,144.56,6.9174]
[1723602968125,26.9152,144.61,144.56,6.9174]
[1723602968323,20.0,144.61,144.57,6.9169]
[1723602972372,20.0,144.61,144.58,6.9164]
[1723602972561,20.0,144.62,144.58,6.9164]
[1723602973053,26.9148,144.62,144.57,6.9169]
[1723602973927,41.52380619,144.62,144.57,6.9169]
[1723602976154,6.9151,144.61,144.55,29.7586]
[1723602976371,6.9151,144.61,144.55,22.8411]
[1723602976372,12.88,144.6,144.55,22.8411]
[1723602976655,19.7957,144.6,144.55,29.7587]
[1723602978944,12.88,144.6,144.54,6.9183]
[1723602979152,12.88,144.58,144.51,22.8947]
[1723602979337,12.88,144.56,144.52,6.9193]
[1723602979663,12.88,144.58,144.54,6.9182]
[1723602980758,19.7966,144.58,144.54,6.9182]
[1723602980944,1.72953831,144.57,144.53,6.9188]
[1723602981424,12.88,144.58,144.54,6.9184]
[1723602982028,1.72954944,144.57,144.54,6.9184]
[1723602982256,12.88,144.58,144.54,6.9184]
[1723602982435,12.88,144.6,144.51,35.7747]
[1723602982636,19.7947,144.62,144.58,6.9165]
[1723602982843,24.5132191,144.65,144.57,12.88]
[1723602982844,20.1100191,144.65,144.57,12.88]
[1723602983062,2.8154788,144.67,144.57,12.88]
[1723602983063,12.88,144.67,144.57,12.88]
[1723602983271,19.7926,144.67,144.62,6.9146]
[1723602983431,19.7926,144.67,144.63,6.9141]
[1723602983777,19.7926,144.67,144.59,12.88]
[1723602983778,6.9126,144.67,144.62,6.9145]
[1723602986366,15.3393,144.69,144.58,32.16]
[1723602986552,20.0,144.68,144.64,6.9135]
[1723602986868,20.0,144.68,144.59,0.25098]
[1723602987233,8.64095574,144.67,144.62,6.9146]
[1723602988371,20.0,144.68,144.63,6.9141]
[1723602989568,1.72836195,144.67,144.63,6.9141]
[1723602989864,8.64056195,144.67,144.63,6.9141]
[1723602990041,6.9129,144.66,144.61,6.9147]
[1723602990241,26.9121,144.68,144.58,32.16]